fUSD/lending_fUSD_20260331
["ID","MTS","AMOUNT","RATE_DAILY","PERIOD"]
[419168233,1774994974266,-150.0,0.00010999,2]
[419168234,1774994974287,-5288.161536,0.00011,2]
[419168235,1774994974307,-193.0,0.00011,2]
[419168236,1774994974328,-5000.0,0.00011,2]
[419168237,1774994974359,-255.0,0.00011,2]
[419168238,1774994974385,-600.0,0.00011,2]
[419168239,1774994974407,-167.23,0.00011113,2]
[419168240,1774994974430,-954.0,0.00011119,2]
[419168241,1774994974452,-471.34,0.00011133,2]
[419168242,1774994974475,-1375.0,0.00011192,2]
[419168243,1774994974498,-635.40804828,0.00011219,2]
[419168244,1774994985624,454.97,9.761e-05,2]
[419168245,1774995000680,1976.83248214,0.0001,2]
[419168246,1774995010611,3374.36244058,9.5e-05,3]
[419168257,1774995034050,-213586.4457091,9.5e-05,3]
[419168258,1774995034061,-207.98269709,0.0001,2]
[419168259,1774995034070,-800.0,0.00010612,2]
[419168260,1774995034079,-113.59195172,0.00011219,2]
[419168261,1774995034089,-442.0,0.0001132,2]
[419168262,1774995034098,-1200.0,0.00011367,2]
[419168263,1774995034107,-500.0,0.00011368,2]
[419168264,1774995034117,-6888.0,0.00011368,2]
[419168265,1774995034126,-181.08010149,0.00011368,2]
[419168266,1774995034136,-176.34718241,0.00011368,2]
[419168267,1774995034145,-233.51889341,0.00011368,2]
[419168268,1774995034155,-151.0,0.00011368,2]
[419168269,1774995034165,-174.61919141,0.00011368,2]
[419168270,1774995034176,-262.90206542,0.00011368,2]
[419168271,1774995034186,-611.0,0.00011403,2]
[419168272,1774995034196,-500.0,0.00011423,2]
[419168273,1774995034205,-151.0,0.00011423,2]
[419168274,1774995034215,-272.62944185,0.00011423,2]
[419168275,1774995034224,-12020.95065361,0.00011457,2]
[419168276,1774995034233,-500.0,0.00011478,2]
[419168277,1774995034242,-151.0,0.00011478,2]
[419168278,1774995034251,-345.54223403,0.00011478,2]
[419168279,1774995034260,-500.0,0.00011502,2]
[419168280,1774995034270,-500.0,0.00011502,2]
[419168281,1774995034279,-606.16361917,0.00011502,2]
[419168282,1774995034288,-2242.81,0.00011507,2]
[419168283,1774995034298,-5581.9367904,0.00011508,2]
[419168284,1774995034307,-265.93591731,0.00011508,2]
[419168285,1774995034316,-500.0,0.00011508,2]
[419168286,1774995034325,-500.0,0.00011508,2]
[419168287,1774995034336,-500.0,0.00011508,2]
[419168288,1774995034346,-500.0,0.00011508,2]
[419168289,1774995034355,-500.0,0.00011508,2]
[419168290,1774995034365,-500.0,0.00011508,2]
[419168291,1774995034375,-500.0,0.00011508,2]
[419168292,1774995034385,-500.0,0.00011508,2]
[419168293,1774995034394,-500.0,0.00011508,2]
[419168294,1774995034405,-528.70923147,0.00011508,2]
[419168295,1774995034414,-500.0,0.00011508,2]
[419168296,1774995034424,-500.0,0.00011508,2]
[419168297,1774995034434,-500.0,0.00011508,2]
[419168298,1774995034443,-500.0,0.00011508,2]
[419168299,1774995034452,-500.0,0.00011508,2]
[419168300,1774995034461,-500.0,0.00011508,2]
[419168301,1774995034471,-500.0,0.00011508,2]
[419168302,1774995034480,-500.0,0.00011508,2]
[419168303,1774995034489,-500.0,0.00011508,2]
[419168304,1774995034499,-500.0,0.00011508,2]
[419168305,1774995034508,-500.0,0.00011508,2]
[419168306,1774995034517,-500.0,0.00011508,2]
[419168307,1774995034526,-500.0,0.00011508,2]
[419168308,1774995034535,-500.0,0.00011508,2]
[419168309,1774995034544,-500.0,0.00011508,2]
[419168310,1774995034554,-500.0,0.00011508,2]
[419168311,1774995034563,-500.0,0.00011508,2]
[419168312,1774995034572,-500.0,0.00011508,2]
[419168313,1774995034581,-500.0,0.00011508,2]
[419168314,1774995034591,-502.87092315,0.00011508,2]
[419168315,1774995034600,-1483.4787641,0.00011509,2]
[419168316,1774995034609,-83182.78016808,0.00011509,2]
[419168317,1774995034622,-16939.82033572,0.00011509,2]
[419168318,1774995034631,-500.0,0.00011533,2]
[419168319,1774995034640,-151.0,0.00011533,2]
[419168320,1774995034649,-152.2492,0.00011563,2]
[419168321,1774995034658,-167.23,0.00011571,2]
[419168322,1774995034667,-500.0,0.00011573,2]
[419168323,1774995034676,-508.58297506,0.00011573,2]
[419168324,1774995034685,-500.0,0.00011573,2]
[419168325,1774995034694,-331.9878363,0.00011573,2]
[419168326,1774995034705,-168.0121637,0.00011573,2]
[419168327,1774995034715,-500.0,0.00011573,2]
[419168328,1774995034723,-500.0,0.00011573,2]
[419168329,1774995034732,-500.0,0.00011573,2]
[419168330,1774995034742,-500.0,0.00011573,2]
[419168331,1774995034751,-500.0,0.00011573,2]
[419168332,1774995034760,-166.05357121,0.00011573,2]
[419168333,1774995034769,-500.0,0.00011573,2]
[419168334,1774995034778,-314.9286845,0.00011573,2]
[419168335,1774995034787,-500.0,0.00011573,2]
[419168336,1774995034796,-500.0,0.00011573,2]
[419168337,1774995034804,-151.78,0.00011577,2]
[419168338,1774995034814,-151.0,0.00011588,2]
[419168339,1774995034823,-234.42,0.00011596,2]
[419168340,1774995034832,-269.72810634,0.00011605,2]
[419168341,1774995034841,-151.0,0.00011605,2]
[419168342,1774995034850,-161.0,0.00011605,3]
[419168343,1774995034859,-600.0,0.00011673,2]
[419168344,1774995034869,-300.0,0.00011673,2]
[419168345,1774995034878,-1145.1088391,0.00011696,2]
[419168346,1774995034887,-150.0,0.000117,2]
[419168347,1774995034896,-1407.43075511,0.00011764,2]
[419168348,1774995038129,-4517.68719352,0.00011764,2]
[419168349,1774995038139,-236.01209305,0.00011764,2]
[419168350,1774995038149,-151.0,0.00011764,2]
[419168351,1774995038159,-151.0,0.00011764,2]
[419168352,1774995038168,-236.01209305,0.00011764,2]
[419168353,1774995038177,-2500.0,0.00011765,2]
[419168354,1774995038186,-2913.49564224,0.00011765,2]
[419168355,1774995038202,-550.45767499,0.00011765,2]
[419168356,1774995038211,-13.63094341,0.00011773,2]
[419168357,1774995038222,-1119.03310865,0.00011773,2]
[419168358,1774995038232,-1119.39529324,0.00011808,2]
[419168359,1774995038243,-392.53470676,0.00011808,2]
[419168360,1774995038252,-451.9874,0.00011808,2]
[419168361,1774995038262,-410.5865399,0.00011855,2]
[419168362,1774995038271,-350.0,0.00011861,2]
[419168363,1774995038280,-199.37631047,0.00011863,2]
[419168364,1774995038290,-500.0,0.00011863,2]
[419168365,1774995038299,-310.81151936,0.00011863,2]
[419168366,1774995038308,-500.0,0.00011863,2]
[419168367,1774995038318,-500.0,0.00011863,2]
[419168368,1774995038328,-500.0,0.00011863,2]
[419168369,1774995038337,-227.19617043,0.00011863,2]
[419168370,1774995038347,-631.73536449,0.00011863,2]
[419168371,1774995038356,-5103.66870024,0.00011864,2]
[419168372,1774995038368,-12006.29957838,0.00011864,2]
[419168373,1774995038380,-39013.95857545,0.00011864,2]
[419168415,1774995039741,-3572.87009396,0.00011864,2]
[419168416,1774995039752,-2093.68970089,0.00011864,2]
[419168417,1774995039856,-638.55537377,0.00011864,2]
[419168418,1774995039867,-1331.50731239,0.00011864,2]
[419168419,1774995039886,-1898.96099122,0.00011864,2]
[419168420,1774995039905,-115473.34717505,0.00011864,2]
[419168421,1774995040788,-32769.34070597,0.00011864,2]
[419168422,1774995040797,-151.0,0.00011864,2]
[419168423,1774995040808,-177.00906979,0.00011864,2]
[419168424,1774995040817,-151.0,0.00011864,2]
[419168425,1774995040827,-177.00906979,0.00011864,2]
[419168426,1774995040837,-1334832.5005,0.00011865,2]
[419168427,1774995040846,-151.0,0.00011865,2]
[419168428,1774995040855,-151.0,0.00011865,2]
[419168429,1774995040866,-171.27963,0.00011907,2]
[419168430,1774995040876,-12020.95065356,0.00011951,2]
[419168431,1774995040886,-681.29228216,0.00012013,3]
[419168432,1774995040896,-646.46887277,0.00012013,3]
[419168433,1774995040905,-1032.72554709,0.00012013,3]
[419168434,1774995040915,-1032.72554709,0.00012013,3]
[419168435,1774995040926,-508.09998155,0.00012014,2]
[419168436,1774995040935,-167.23,0.0001203,2]
[419168437,1774995040945,-240.0,0.00012044,2]
[419168438,1774995040954,-3217.38,0.00012055,2]
[419168439,1774995040964,-167.8,0.00012093,2]
[419168440,1774995040973,-1929.0,0.00012104,5]
[419168441,1774995040983,-1974.0,0.00012104,5]
[419168442,1774995040992,-2428.0,0.00012104,5]
[419168443,1774995041001,-171.27964,0.00012107,2]
[419168444,1774995041011,-2000.0,0.00012115,2]
[419168445,1774995041020,-500.0,0.00012121,2]
[419168446,1774995041029,-503.9213309,0.00012121,2]
[419168447,1774995041038,-502.76625821,0.00012121,2]
[419168448,1774995041047,-502.03816504,0.00012121,2]
[419168449,1774995041056,-500.0,0.00012121,2]
[419168450,1774995041065,-1000.0,0.00012121,2]
[419168451,1774995041074,-820.33958231,0.00012121,2]
[419168452,1774995041083,-1110.84,0.00012145,2]
[419168453,1774995041092,-2075.778,0.00012213,2]
[419168454,1774995041101,-5925.1179486,0.00012224,2]
[419168455,1774995041110,-171.27963,0.00012307,2]
[419168456,1774995041119,-200.0,0.00012354,2]
[419168457,1774995041128,-3463.95331721,0.00012356,2]
[419168458,1774995041137,-12020.95065356,0.00012444,2]
[419168459,1774995041146,-1000.0,0.00012478,2]
[419168460,1774995041156,-167.23,0.00012488,2]
[419168461,1774995041164,-1000.0,0.00012498,2]
[419168462,1774995041174,-1000.0,0.00012499,2]
[419168463,1774995041183,-1000.0,0.00012499,2]
[419168464,1774995041192,-1680.0,0.00012504,2]
[419168465,1774995041201,-171.27964,0.00012507,2]
[419168466,1774995041210,-500.0,0.00012521,2]
[419168467,1774995041220,-1000.0,0.00012521,2]
[419168468,1774995041229,-300.52842777,0.00012532,2]
[419168469,1774995041238,-1524.0,0.00012532,2]
[419168470,1774995041247,-1524.0,0.00012532,2]
[419168471,1774995041256,-161.0,0.00012532,2]
[419168472,1774995041265,-1524.0,0.00012532,2]
[419168473,1774995041274,-161.0,0.00012532,2]
[419168474,1774995041285,-1524.0,0.00012532,2]
[419168475,1774995041294,-152.0,0.00012532,2]
[419168476,1774995041303,-1524.0,0.00012532,2]
[419168477,1774995041312,-161.0,0.00012532,2]
[419168478,1774995041321,-152.0,0.00012532,2]
[419168479,1774995041330,-1524.0,0.00012532,2]
[419168480,1774995041339,-161.0,0.00012532,2]
[419168481,1774995041348,-152.0,0.00012532,2]
[419168482,1774995041357,-1524.0,0.00012532,2]
[419168483,1774995041366,-166.05003613,0.00012532,2]
[419168484,1774995041375,-152.0,0.00012532,2]
[419168485,1774995041384,-1524.0,0.00012532,2]
[419168486,1774995041393,-152.0,0.00012532,2]
[419168487,1774995041403,-1524.0,0.00012532,2]
[419168488,1774995041412,-152.0,0.00012532,2]
[419168489,1774995041421,-1524.0,0.00012532,2]
[419168490,1774995041431,-152.0,0.00012532,2]
[419168491,1774995041440,-1524.0,0.00012532,2]
[419168492,1774995041449,-152.0,0.00012532,2]
[419168493,1774995041458,-1524.0,0.00012532,2]
[419168494,1774995041467,-152.0,0.00012532,2]
[419168495,1774995041476,-1524.0,0.00012532,2]
[419168496,1774995041485,-152.0,0.00012532,2]
[419168497,1774995041494,-1524.0,0.00012532,2]
[419168498,1774995041503,-152.0,0.00012532,2]
[419168499,1774995041512,-1524.0,0.00012532,2]
[419168500,1774995041521,-1524.0,0.00012532,2]
[419168501,1774995041530,-152.0,0.00012532,2]
[419168502,1774995041540,-1523.0,0.00012532,2]
[419168503,1774995041549,-152.0,0.00012532,2]
[419168504,1774995041559,-152.0,0.00012532,2]
[419168505,1774995041568,-1000.0,0.00012534,2]
[419168506,1774995041577,-1000.0,0.00012545,2]
[419168507,1774995041586,-1000.0,0.00012551,2]
[419168508,1774995041595,-167.8,0.00012554,2]
[419168509,1774995041604,-1000.0,0.00012605,2]
[419168510,1774995041613,-1000.0,0.00012605,2]
[419168511,1774995041622,-151.78,0.00012629,2]
[419168512,1774995041631,-1000.0,0.00012632,2]
[419168513,1774995041640,-1000.0,0.00012633,2]
[419168514,1774995041650,-157.02,0.00012648,2]
[419168515,1774995041660,-1000.0,0.00012668,2]
[419168516,1774995041669,-5925.1179486,0.00012683,2]
[419168517,1774995041679,-591.92174838,0.00012691,2]
[419168518,1774995041691,-2000.0,0.000127,2]
[419168519,1774995041701,-171.27964,0.00012707,2]
[419168520,1774995041712,-292.732276,0.0001274,2]
[419168521,1774995041721,-354.692886,0.00012801,2]
[419168522,1774995041730,-199.388668,0.00012849,2]
[419168523,1774995041739,-1000.0,0.0001289,2]
[419168524,1774995041749,-12020.95065356,0.00012938,2]
[419168525,1774995041758,-167.23,0.00012947,2]
[419168526,1774995041768,-884.38292152,0.00012999,2]
[419168527,1774995041777,-1523.9008954,0.00013,2]
[419168528,1774995041786,-173.5516458,0.00013,2]
[419168529,1774995041795,-159.18918241,0.00013,2]
[419168530,1774995041805,-332.68503519,0.00013,2]
[419168531,1774995041814,-199.84450699,0.00013,2]
[419168532,1774995041824,-172.05923844,0.00013,2]
[419168533,1774995041833,-167.66187801,0.00013,2]
[419168534,1774995041843,-250.0,0.00013,2]
[419168535,1774995041852,-167.8,0.00013014,2]
[419168536,1774995041861,-150.0,0.00013081,2]
[419168537,1774995041872,-194.34,0.000131,7]
[419168538,1774995041883,-502.0,0.00013111,2]
[419168539,1774995041894,-5925.1179486,0.00013143,2]
[419168540,1774995041903,-417.47774552,0.00013321,2]
[419168541,1774995041913,-3240.0,0.00013425,2]
[419168542,1774995041923,-12020.95065356,0.00013432,2]
[419168543,1774995041933,-2000.0,0.00013461,2]
[419168544,1774995041943,-1110.84,0.00013495,2]
[419168545,1774995041952,-191.64,0.00013573,2]
[419168546,1774995041962,-5925.1179486,0.00013602,2]
[419168547,1774995041972,-151.78,0.00013681,2]
[419168548,1774995041982,-151.0,0.00013696,2]
[419168549,1774995041991,-153.35841336,0.00013698,2]
[419168550,1774995042001,-500.0,0.00013698,2]
[419168551,1774995042011,-195.34,0.00013698,2]
[419168552,1774995042020,-500.0,0.00013698,2]
[419168553,1774995042029,-510.39304896,0.00013698,2]
[419168554,1774995042038,-500.0,0.00013698,2]
[419168555,1774995042048,-509.85375718,0.00013698,2]
[419168556,1774995042058,-500.0,0.00013698,2]
[419168557,1774995042067,-500.0,0.00013698,2]
[419168558,1774995042077,-507.68138774,0.00013698,2]
[419168559,1774995042086,-500.0,0.00013698,2]
[419168560,1774995042095,-506.31275977,0.00013698,2]
[419168561,1774995042105,-511.76160615,0.00013698,2]
[419168562,1774995042114,-505.68583514,0.00013698,2]
[419168563,1774995042123,-500.0,0.00013698,2]
[419168564,1774995042133,-488.09,0.00013698,2]
[419168565,1774995042142,-498.70852638,0.00013698,2]
[419168566,1774995042151,-502.2481036,0.00013698,2]
[419168567,1774995042161,-500.0,0.00013698,2]
[419168568,1774995042170,-522.56929997,0.00013698,2]
[419168569,1774995042180,-503.97005411,0.00013698,2]
[419168570,1774995042189,-500.0,0.00013698,2]
[419168571,1774995042198,-531.7254745,0.00013698,2]
[419168572,1774995042207,-500.0,0.00013698,2]
[419168573,1774995042217,-500.0,0.00013698,2]
[419168574,1774995042226,-500.0,0.00013698,2]
[419168575,1774995042236,-439.81701128,0.00013698,2]
[419168576,1774995042245,-500.0,0.00013698,2]
[419168577,1774995042255,-646.51224113,0.00013698,2]
[419168578,1774995042264,-465.33463116,0.00013698,2]
[419168579,1774995042273,-128061.66,0.00013699,2]
[419168580,1774995042282,-5081.68,0.00013699,2]
[419168581,1774995042292,-431.36,0.00013699,2]
[419168582,1774995042302,-150.99,0.00013699,2]
[419168583,1774995042311,-23353.38,0.00013699,2]
[419168584,1774995042320,-499.99,0.00013699,2]
[419168585,1774995042329,-82199.52,0.00013699,2]
[419168586,1774995042339,-9999.99,0.00013699,2]
[419168587,1774995042348,-1620.0,0.00013699,2]
[419168588,1774995042357,-1549.11,0.00013699,2]
[419168589,1774995042367,-1480.3,0.00013699,2]
[419168590,1774995042376,-9999.99,0.00013699,2]
[419168591,1774995042385,-999.99,0.00013699,2]
[419168592,1774995042394,-9999.99,0.00013699,2]
[419168593,1774995042404,-160.93,0.00013699,2]
[419168594,1774995042413,-150.99,0.00013699,2]
[419168595,1774995042422,-299.99,0.00013699,2]
[419168596,1774995042431,-14103.79,0.00013699,2]
[419168597,1774995042440,-725.84,0.00013699,2]
[419168598,1774995042450,-5033.73,0.00013699,2]
[419168599,1774995042459,-200.0,0.00013699,2]
[419168600,1774995042468,-693.04,0.00013699,2]
[419168601,1774995042478,-166.66,0.00013699,2]
[419168602,1774995042487,-151.0,0.00013699,2]
[419168603,1774995042496,-154.67992606,0.00013699,2]
[419168604,1774995042505,-500.0,0.00013699,2]
[419168605,1774995042514,-500.0,0.00013699,2]
[419168606,1774995042523,-500.0,0.00013699,2]
[419168607,1774995042532,-500.0,0.00013699,2]
[419168608,1774995042541,-500.0,0.00013699,2]
[419168609,1774995042551,-500.0,0.00013699,2]
[419168610,1774995042560,-500.0,0.00013699,2]
[419168611,1774995042570,-500.58525136,0.00013699,2]
[419168612,1774995042579,-500.0,0.00013699,2]
[419168613,1774995042588,-548.15915325,0.00013699,2]
[419168614,1774995042598,-500.0,0.00013699,2]
[419168615,1774995042607,-500.0,0.00013699,2]
[419168616,1774995042616,-500.0,0.00013699,2]
[419168617,1774995042626,-640.4578624,0.00013699,2]
[419168618,1774995042635,-500.0,0.00013699,2]
[419168619,1774995042643,-500.0,0.00013699,2]
[419168620,1774995042652,-500.0,0.00013699,2]
[419168621,1774995042662,-500.0,0.00013699,2]
[419168622,1774995042671,-500.0,0.00013699,2]
[419168623,1774995042680,-500.0,0.00013699,2]
[419168624,1774995042689,-500.0,0.00013699,2]
[419168625,1774995042698,-500.0,0.00013699,2]
[419168626,1774995042708,-500.0,0.00013699,2]
[419168627,1774995042717,-515.41384431,0.00013699,2]
[419168628,1774995042726,-210.84773935,0.00013699,2]
[419168629,1774995042736,-511.96791911,0.00013699,2]
[419168630,1774995042745,-500.0,0.00013699,2]
[419168631,1774995042755,-500.39048904,0.00013699,2]
[419168632,1774995042764,-500.17694059,0.00013699,2]
[419168633,1774995042773,-500.0,0.00013699,2]
[419168634,1774995042782,-160.65215887,0.00013699,2]
[419168635,1774995042792,-500.0,0.00013699,2]
[419168636,1774995042801,-500.0,0.00013699,2]
[419168637,1774995042810,-500.0,0.00013699,2]
[419168638,1774995042820,-500.0,0.00013699,2]
[419168639,1774995042829,-500.0,0.00013699,2]
[419168640,1774995042838,-168.59758091,0.00013699,2]
[419168641,1774995042848,-169.1547299,0.00013699,2]
[419168642,1774995042857,-881.0,0.00013699,2]
[419168643,1774995042867,-151.0,0.00013699,2]
[419168645,1774995042876,-202.569214,0.00013699,2]
[419168646,1774995042885,-228.75517134,0.00013699,2]
[419168647,1774995042894,-151.0,0.00013699,2]
[419168648,1774995042904,-151.0,0.00013699,2]
[419168650,1774995042914,-150.0,0.000137,2]
[419168651,1774995042924,-217.8882415,0.000137,2]
[419168652,1774995042934,-150.0,0.000137,2]
[419168653,1774995042943,-2351.0,0.00013754,2]
[419168654,1774995042953,-166.66,0.00013836,2]
[419168655,1774995042964,-12020.95065356,0.00013925,2]
[419168656,1774995042973,-168.0,0.00013928,2]
[419168657,1774995042982,-168.0,0.00013939,2]
[419168658,1774995042992,-166.66,0.00013973,2]
[419168659,1774995043001,-881.0,0.00013973,2]
[419168660,1774995043010,-168.0,0.00013981,2]
[419168661,1774995043020,-177.8980883,0.00013985,2]
[419168662,1774995043030,-211.48433477,0.00013985,2]
[419168663,1774995043040,-217.27228303,0.00013985,2]
[419168664,1774995043049,-199.59776285,0.00013985,2]
[419168665,1774995043059,-502.0,0.00014015,2]
[419168666,1774995043068,-152.92675978,0.00014023,2]
[419168667,1774995043078,-168.0,0.00014053,2]
[419168668,1774995043087,-5925.1179486,0.00014062,2]
[419168669,1774995043097,-168.0,0.00014077,2]
[419168670,1774995043107,-166.66,0.0001411,2]
[419168671,1774995043116,-168.0,0.00014113,2]
[419168672,1774995043126,-22340.3718849,0.00014156,2]
[419168673,1774995043136,-500.0,0.00014194,2]
[419168674,1774995043146,-168.0,0.00014198,2]
[419168675,1774995043156,-168.0,0.00014223,2]
[419168676,1774995043165,-168.0,0.00014228,2]
[419168677,1774995043175,-166.66,0.00014247,2]
[419168678,1774995043185,-1000.0,0.00014247,2]
[419168679,1774995043194,-1000.0,0.00014247,2]
[419168680,1774995043204,-500.0,0.00014247,2]
[419168681,1774995043214,-502.79991996,0.00014247,2]
[419168682,1774995043224,-500.0,0.00014247,2]
[419168683,1774995043233,-396.39554911,0.00014247,2]
[419168684,1774995043243,-500.0,0.00014247,2]
[419168685,1774995043252,-1000.0,0.00014247,2]
[419168686,1774995043262,-500.0,0.00014247,2]
[419168687,1774995043563,-1002.98896701,0.00014247,2]
[419168688,1774995043574,-500.0,0.00014247,2]
[419168689,1774995043583,-1000.0,0.00014247,2]
[419168690,1774995043592,-760.96986565,0.00014247,2]
[419168691,1774995043602,-777.03027115,0.00014247,2]
[419168692,1774995043611,-1001.39795336,0.00014247,2]
[419168693,1774995043620,-410.58294734,0.00014247,2]
[419168694,1774995043630,-504.36577376,0.00014247,2]
[419168695,1774995043639,-500.0,0.00014247,2]
[419168696,1774995043649,-1001.08227451,0.00014247,2]
[419168697,1774995043658,-1001.22367552,0.00014247,2]
[419168698,1774995043668,-500.0,0.00014247,2]
[419168699,1774995043678,-500.0,0.00014247,2]
[419168700,1774995043688,-946.69,0.00014247,2]
[419168701,1774995043697,-1143.0,0.00014338,2]
[419168702,1774995043707,-693.04,0.00014384,2]
[419168703,1774995043717,-166.66,0.00014384,2]
[419168704,1774995043727,-168.0,0.00014405,2]
[419168705,1774995043737,-12020.95065356,0.00014419,2]
[419168706,1774995043747,-168.0,0.00014445,2]
[419168707,1774995043757,-168.0,0.00014464,2]
[419168708,1774995043768,-2000.0,0.000145,2]
[419168709,1774995043777,-251.7871,0.000145,12]
[419168710,1774995043787,-5925.1179486,0.00014521,2]
[419168711,1774995043797,-182.89,0.00014544,2]
[419168712,1774995043807,-168.0,0.00014688,2]
[419168713,1774995043817,-1143.0,0.00014698,2]
[419168714,1774995043827,-151.78,0.00014734,2]
[419168715,1774995043836,-4984.8107564,0.00014747,2]
[419168716,1774995043846,-168.0,0.00014759,2]
[419168717,1774995043855,-500.0,0.00014795,2]
[419168718,1774995043865,-2000.0,0.00014808,2]
[419168719,1774995043876,-168.0,0.00014834,2]
[419168720,1774995043885,-1110.84,0.00014844,2]
[419168721,1774995043895,-154.67710672,0.00014873,2]
[419168722,1774995043904,-626.0,0.000149,2]
[419168723,1774995043914,-306.0,0.000149,2]
[419168724,1774995043924,-1000.0,0.000149,2]
[419168725,1774995043933,-12020.95065356,0.00014913,2]
[419168726,1774995043943,-502.0,0.00014919,3]
[419168727,1774995043953,-5925.1179486,0.00014981,2]
[419168728,1774995043962,-628.0,0.00015,2]
[419168729,1774995043972,-300.0,0.00015,2]
[419168730,1774995043981,-234.07898124,0.00015023,2]
[419168731,1774995043990,-2572.27,0.00015029,2]
[419168732,1774995044000,-1571.0,0.0001504,2]
[419168733,1774995044009,-842.19,0.00015057,2]
[419168734,1774995044018,-3882.68,0.00015057,2]
[419168735,1774995044028,-785.11,0.00015068,2]
[419168736,1774995044037,-693.04,0.00015068,2]
[419168737,1774995044046,-160.0,0.00015078,2]
[419168738,1774995044056,-168.0,0.00015085,2]
[419168739,1774995044065,-3292.0,0.00015129,2]
[419168740,1774995044075,-168.0,0.0001518,2]
[419168741,1774995044084,-168.0,0.00015252,2]
[419168742,1774995044094,-1132.66405203,0.00015294,2]
[419168743,1774995044103,-151.0,0.00015307,2]
[419168744,1774995044112,-151.0,0.00015307,2]
[419168745,1774995044122,-784.61,0.00015342,2]
[419168746,1774995044131,-168.0,0.00015383,2]
[419168747,1774995044140,-168.0,0.00015402,2]
[419168748,1774995044150,-12020.95065356,0.00015406,2]
[419168749,1774995044159,-168.0,0.00015419,2]
[419168750,1774995044168,-5925.1179486,0.0001544,2]
[419168751,1774995044177,-168.0,0.00015458,2]
[419168752,1774995044187,-1054.17,0.00015507,2]
[419168753,1774995044196,-168.0,0.00015514,2]
[419168754,1774995044206,-157.02,0.00015525,2]
[419168755,1774995044215,-6015.0,0.00015673,2]
[419168756,1774995044225,-415.0,0.00015673,2]
[419168757,1774995044234,-2469.0,0.00015673,2]
[419168758,1774995044243,-1571.0,0.0001568,2]
[419168759,1774995044252,-198.0,0.00015753,2]
[419168760,1774995044262,-693.04,0.00015753,2]
[419168761,1774995044272,-151.78,0.00015786,2]
[419168762,1774995044282,-502.0,0.00015823,4]
[419168763,1774995044291,-500.0,0.0001589,2]
[419168764,1774995044300,-500.0,0.0001589,2]
[419168765,1774995044309,-500.0,0.0001589,2]
[419168766,1774995044318,-500.0,0.0001589,2]
[419168767,1774995044327,-500.0,0.0001589,2]
[419168768,1774995044336,-500.0,0.0001589,2]
[419168769,1774995044345,-514.63553368,0.0001589,2]
[419168770,1774995044355,-250.0,0.0001589,2]
[419168771,1774995044364,-250.0,0.0001589,2]
[419168772,1774995044375,-394.73,0.0001589,2]
[419168773,1774995044386,-1054.17,0.00015895,2]
[419168774,1774995044396,-10000.0,0.000159,2]
[419168775,1774995044406,-326.2155,0.000159,17]
[419168776,1774995044415,-12020.95065356,0.000159,2]
[419168777,1774995044425,-151.0,0.000159,2]
[419168778,1774995044436,-5925.1179486,0.000159,2]
[419168779,1774995044446,-5716.4697965,0.000159,2]
[419168780,1774995044457,-225.9230826,0.000159,2]
[419168781,1774995044467,-1214.01619027,0.000159,2]
[419168782,1774995044477,-1308.51768557,0.0001596,2]
[419168783,1774995044486,-410.5865399,0.0001599,2]
[419168784,1774995044495,-410.5865399,0.0001599,2]
[419168785,1774995044510,-151.0,0.00015997,2]